fUSD/lending_fUSD_20250905
["ID","MTS","AMOUNT","RATE_DAILY","PERIOD"]
[383761815,1757109195421,-400.0,0.00038356,10]
[383761816,1757109195431,-414.95,0.00038356,10]
[383761817,1757109195441,-400.0,0.00038356,10]
[383761818,1757109195451,-400.0,0.00038356,10]
[383761819,1757109195462,-400.0,0.00038356,10]
[383761820,1757109195472,-447.82,0.00038356,10]
[383761821,1757109195483,-647.6,0.00038356,10]
[383761822,1757109195493,-400.0,0.00038356,10]
[383761823,1757109195503,-400.0,0.00038356,10]
[383761824,1757109195512,-400.0,0.00038356,10]
[383761825,1757109195523,-425.6,0.00038356,10]
[383761826,1757109195533,-400.0,0.00038356,10]
[383761827,1757109195543,-490.57,0.00038356,10]
[383761828,1757109195552,-227.50794076,0.00038356,10]
[383761829,1757109195562,-400.0,0.00038356,10]
[383761830,1757109195572,-400.0,0.00038356,10]
[383761831,1757109195582,-641.44,0.00038356,10]
[383761832,1757109195592,-400.0,0.00038356,10]
[383761833,1757109195603,-419.23,0.00038356,10]
[383761834,1757109195613,-403.59,0.00038356,10]
[383761835,1757109195622,-401.8,0.00038356,10]
[383761836,1757109195633,-400.0,0.00038356,10]
[383761837,1757109195642,-400.0,0.00038356,10]
[383761838,1757109195652,-400.0,0.00038356,10]
[383761839,1757109195662,-400.0,0.00038356,10]
[383761840,1757109195673,-548.51,0.00038356,10]
[383761841,1757109195683,-452.54,0.00038356,10]
[383761842,1757109195693,-454.13,0.00038356,10]
[383761843,1757109195703,-400.0,0.00038356,10]
[383761844,1757109195714,-440.39,0.00038356,10]
[383761845,1757109195724,-400.0,0.00038356,10]
[383761846,1757109195735,-679.14,0.00038356,10]
[383761847,1757109195745,-433.62,0.00038356,10]
[383761848,1757109195755,-400.0,0.00038356,10]
[383761849,1757109195766,-400.0,0.00038356,10]
[383761850,1757109195776,-400.0,0.00038356,10]
[383761851,1757109195786,-589.1,0.00038356,10]
[383761852,1757109195796,-551.08,0.00038356,10]
[383761853,1757109195806,-415.82,0.00038356,10]
[383761854,1757109195816,-576.99,0.00038356,10]
[383761855,1757109195826,-400.0,0.00038356,10]
[383761856,1757109195837,-455.37,0.00038356,10]
[383761857,1757109195846,-410.32,0.00038356,10]
[383761858,1757109195857,-400.0,0.00038356,10]
[383761859,1757109195867,-497.74,0.00038356,10]
[383761860,1757109195878,-400.0,0.00038356,10]
[383761861,1757109195888,-498.14,0.00038356,10]
[383761862,1757109195899,-286.90117161,0.00038356,10]
[383761863,1757109195910,-878.01,0.00038356,10]
[383761864,1757109195921,-400.0,0.00038356,10]
[383761865,1757109195931,-400.0,0.00038356,10]
[383761866,1757109195941,-1227.44,0.00038356,10]
[383761867,1757109195951,-400.0,0.00038356,10]
[383761868,1757109195961,-400.0,0.00038356,10]
[383761869,1757109195974,-601.8,0.00038356,10]
[383761870,1757109195986,-400.0,0.00038356,10]
[383761871,1757109195996,-400.0,0.00038356,10]
[383761872,1757109196006,-404.89,0.00038356,10]
[383761873,1757109196016,-400.0,0.00038356,10]
[383761874,1757109196026,-400.0,0.00038356,10]
[383761875,1757109196036,-414.05,0.00038356,10]
[383761876,1757109196047,-562.13,0.00038356,10]
[383761877,1757109196057,-400.0,0.00038356,10]
[383761878,1757109196067,-400.0,0.00038356,10]
[383761879,1757109196077,-457.02,0.00038356,10]
[383761880,1757109196087,-400.0,0.00038356,10]
[383761881,1757109196097,-519.36,0.00038356,10]
[383761882,1757109196107,-400.0,0.00038356,10]
[383761883,1757109196117,-400.0,0.00038356,10]
[383761884,1757109196127,-400.0,0.00038356,10]
[383761885,1757109196137,-400.0,0.00038356,10]
[383761886,1757109196147,-400.0,0.00038356,10]
[383761887,1757109196157,-400.0,0.00038356,10]
[383761888,1757109196167,-464.19,0.00038356,10]
[383761889,1757109196178,-400.0,0.00038356,10]
[383761890,1757109196188,-509.57,0.00038356,10]
[383761891,1757109196198,-400.0,0.00038356,10]
[383761892,1757109196208,-400.0,0.00038356,10]
[383761893,1757109196219,-400.0,0.00038356,10]
[383761894,1757109196229,-400.0,0.00038356,10]
[383761895,1757109196239,-536.82,0.00038356,10]
[383761896,1757109196250,-400.0,0.00038356,10]
[383761897,1757109196261,-400.0,0.00038356,10]
[383761898,1757109196271,-400.0,0.00038356,10]
[383761899,1757109196282,-456.25,0.00038356,10]
[383761900,1757109196292,-400.0,0.00038356,10]
[383761901,1757109196302,-400.0,0.00038356,10]
[383761902,1757109196312,-400.0,0.00038356,10]
[383761903,1757109196322,-400.0,0.00038356,10]
[383761904,1757109196333,-400.0,0.00038356,10]
[383761905,1757109196343,-400.0,0.00038356,10]
[383761906,1757109196353,-1325.01,0.00038356,10]
[383761907,1757109196364,-662.17,0.00038356,10]
[383761908,1757109196375,-400.0,0.00038356,10]
[383761909,1757109196385,-475.33,0.00038356,10]
[383761910,1757109196395,-276.19361745,0.00038356,10]
[383761911,1757109196406,-580.54,0.00038356,10]
[383761912,1757109196417,-400.0,0.00038356,10]
[383761913,1757109196427,-468.08,0.00038356,10]
[383761914,1757109196437,-400.0,0.00038356,10]
[383761915,1757109196448,-400.0,0.00038356,10]
[383761916,1757109196458,-400.0,0.00038356,10]
[383761917,1757109196469,-504.21,0.00038356,10]
[383761918,1757109196479,-400.0,0.00038356,10]
[383761919,1757109196489,-470.77,0.00038356,10]
[383761920,1757109196499,-400.0,0.00038356,10]
[383761921,1757109196509,-417.63,0.00038356,10]
[383761922,1757109196520,-400.0,0.00038356,10]
[383761923,1757109196530,-400.0,0.00038356,10]
[383761924,1757109196540,-406.01,0.00038356,10]
[383761925,1757109196551,-400.0,0.00038356,10]
[383761926,1757109196561,-400.0,0.00038356,10]
[383761927,1757109196572,-560.94,0.00038356,10]
[383761928,1757109196582,-400.0,0.00038356,10]
[383761929,1757109196592,-671.39,0.00038356,10]
[383761930,1757109196603,-660.54,0.00038356,10]
[383761931,1757109196613,-400.0,0.00038356,10]
[383761932,1757109196624,-400.0,0.00038356,10]
[383761933,1757109196634,-400.0,0.00038356,10]
[383761934,1757109196644,-400.0,0.00038356,10]
[383761935,1757109196655,-404.99970828,0.00038356,10]
[383761936,1757109196665,-400.0,0.00038356,10]
[383761937,1757109196675,-505.54,0.00038356,10]
[383761938,1757109196686,-400.0,0.00038356,10]
[383761939,1757109196696,-400.0,0.00038356,2]
[383761940,1757109196706,-400.0,0.00038356,10]
[383761941,1757109196716,-400.0,0.00038356,10]
[383761942,1757109196727,-400.0,0.00038356,10]
[383761943,1757109196737,-493.62,0.00038356,10]
[383761944,1757109196747,-556.02,0.00038356,10]
[383761945,1757109196758,-514.72,0.00038356,10]
[383761946,1757109196769,-400.0,0.00038356,10]
[383761947,1757109196779,-456.07,0.00038356,10]
[383761948,1757109196789,-1553.38,0.00038356,10]
[383761949,1757109196799,-737.77,0.00038356,10]
[383761950,1757109196810,-400.0,0.00038356,10]
[383761951,1757109196820,-400.0,0.00038356,10]
[383761952,1757109196831,-521.95,0.00038356,10]
[383761953,1757109196841,-300.0,0.00038356,10]
[383761954,1757109196851,-418.68,0.00038356,10]
[383761955,1757109196862,-583.81,0.00038356,10]
[383761956,1757109196873,-400.0,0.00038356,10]
[383761957,1757109196883,-400.0,0.00038356,10]
[383761958,1757109196893,-430.27,0.00038356,10]
[383761959,1757109196903,-498.62,0.00038356,10]
[383761960,1757109196914,-400.0,0.00038356,10]
[383761961,1757109196924,-579.68,0.00038356,10]
[383761962,1757109196935,-425.45,0.00038356,10]
[383761963,1757109196945,-691.22,0.00038356,10]
[383761964,1757109196955,-400.0,0.00038356,7]
[383761965,1757109196965,-400.0,0.00038356,10]
[383761966,1757109196978,-601.12,0.00038356,10]
[383761967,1757109196989,-400.0,0.00038356,10]
[383761968,1757109196999,-400.0,0.00038356,10]
[383761969,1757109197010,-400.0,0.00038356,10]
[383761970,1757109197295,-400.0,0.00038356,10]
[383761971,1757109197305,-401.24,0.00038356,10]
[383761972,1757109197315,-607.93,0.00038356,10]
[383761973,1757109197325,-1060.4,0.00038356,10]
[383761974,1757109197334,-487.13,0.00038356,10]
[383761975,1757109197344,-400.0,0.00038356,10]
[383761976,1757109197353,-565.1,0.00038356,10]
[383761977,1757109197363,-400.0,0.00038356,10]
[383761978,1757109197372,-400.0,0.00038356,10]
[383761979,1757109197382,-643.16,0.00038356,10]
[383761980,1757109197392,-599.17,0.00038356,10]
[383761981,1757109197402,-408.11,0.00038356,10]
[383761982,1757109197411,-400.0,0.00038356,10]
[383761983,1757109197421,-400.0,0.00038356,10]
[383761984,1757109197430,-400.0,0.00038356,10]
[383761985,1757109197440,-400.0,0.00038356,10]
[383761986,1757109197449,-567.22,0.00038356,10]
[383761987,1757109197459,-400.0,0.00038356,10]
[383761988,1757109197469,-400.0,0.00038356,10]
[383761989,1757109197479,-400.0,0.00038356,10]
[383761990,1757109197489,-400.0,0.00038356,10]
[383761991,1757109197498,-587.89,0.00038356,10]
[383761992,1757109197508,-400.0,0.00038356,10]
[383761993,1757109197518,-649.4,0.00038356,10]
[383761994,1757109197528,-400.0,0.00038356,10]
[383761995,1757109197537,-444.03,0.00038356,10]
[383761996,1757109197547,-540.45,0.00038356,10]
[383761997,1757109197558,-521.91,0.00038356,10]
[383761998,1757109197567,-400.0,0.00038356,10]
[383761999,1757109197578,-577.54,0.00038356,10]
[383762000,1757109197587,-400.0,0.00038356,10]
[383762001,1757109197597,-455.87,0.00038356,10]
[383762002,1757109197608,-400.0,0.00038356,10]
[383762003,1757109197618,-895.72248689,0.00038356,10]
[383762004,1757109197628,-606.17,0.00038356,10]
[383762005,1757109197638,-400.0,0.00038356,10]
[383762006,1757109197648,-400.0,0.00038356,10]
[383762007,1757109197658,-552.86,0.00038356,10]
[383762008,1757109197668,-400.0,0.00038356,10]
[383762009,1757109197678,-738.19,0.00038356,10]
[383762010,1757109197688,-400.0,0.00038356,10]
[383762011,1757109197698,-400.0,0.00038356,10]
[383762012,1757109197707,-400.0,0.00038356,10]
[383762013,1757109197718,-400.0,0.00038356,10]
[383762014,1757109197728,-400.0,0.00038356,10]
[383762015,1757109197738,-485.13,0.00038356,10]
[383762016,1757109197748,-400.0,0.00038356,10]
[383762017,1757109197758,-400.0,0.00038356,10]
[383762018,1757109197768,-400.0,0.00038356,10]
[383762019,1757109197779,-400.0,0.00038356,10]
[383762020,1757109197789,-497.92,0.00038356,10]
[383762021,1757109197799,-534.68,0.00038356,10]
[383762022,1757109197809,-434.21,0.00038356,10]
[383762023,1757109197819,-400.0,0.00038356,10]
[383762024,1757109197829,-400.0,0.00038356,10]
[383762025,1757109197839,-400.0,0.00038356,10]
[383762026,1757109197849,-400.0,0.00038356,10]
[383762027,1757109197859,-400.0,0.00038356,10]
[383762028,1757109197869,-400.0,0.00038356,10]
[383762029,1757109197879,-400.0,0.00038356,10]
[383762030,1757109197889,-400.0,0.00038356,10]
[383762031,1757109197900,-403.89500027,0.00038356,10]
[383762032,1757109197910,-400.0,0.00038356,10]
[383762033,1757109197920,-400.0,0.00038356,10]
[383762034,1757109197930,-400.0,0.00038356,10]
[383762035,1757109197940,-697.19,0.00038356,10]
[383762036,1757109197950,-316.13800042,0.00038356,10]
[383762037,1757109197959,-588.33,0.00038356,10]
[383762038,1757109197970,-400.0,0.00038356,10]
[383762039,1757109197985,-400.0,0.00038356,10]
[383762040,1757109197994,-467.87,0.00038356,10]
[383762041,1757109198004,-400.0,0.00038356,10]
[383762042,1757109198013,-151.36952487,0.00038356,10]
[383762043,1757109198024,-400.0,0.00038356,10]
[383762044,1757109198034,-400.0,0.00038356,10]
[383762045,1757109198044,-400.0,0.00038356,10]
[383762046,1757109198054,-400.0,0.00038356,10]
[383762047,1757109198064,-400.0,0.00038356,10]
[383762048,1757109198073,-400.0,0.00038356,10]
[383762049,1757109198083,-400.0,0.00038356,10]
[383762050,1757109198092,-434.97,0.00038356,10]
[383762051,1757109198101,-400.0,0.00038356,10]
[383762052,1757109198111,-400.0,0.00038356,10]
[383762053,1757109198120,-547.22,0.00038356,10]
[383762054,1757109198129,-400.0,0.00038356,10]
[383762055,1757109198139,-9387.3,0.00038356,10]
[383762056,1757109198148,-438.16,0.00038356,10]
[383762057,1757109198157,-400.44,0.00038356,10]
[383762058,1757109198166,-400.0,0.00038356,10]
[383762059,1757109198176,-467.62,0.00038356,10]
[383762060,1757109198185,-506.66,0.00038356,10]
[383762061,1757109198195,-400.0,0.00038356,10]
[383762062,1757109198204,-400.0,0.00038356,10]
[383762063,1757109198213,-400.0,0.00038356,10]
[383762064,1757109198224,-400.0,0.00038356,10]
[383762065,1757109198234,-400.0,0.00038356,10]
[383762066,1757109198243,-422.62,0.00038356,10]
[383762067,1757109198253,-400.0,0.00038356,10]
[383762068,1757109198262,-406.5,0.00038356,10]
[383762069,1757109198272,-773.54,0.00038356,10]
[383762070,1757109198282,-400.0,0.00038356,10]
[383762071,1757109198292,-765.31,0.00038356,10]
[383762072,1757109198302,-401.2,0.00038356,10]
[383762073,1757109198312,-400.0,0.00038356,10]
[383762074,1757109198322,-218.37670084,0.00038356,10]
[383762075,1757109198332,-400.0,0.00038356,10]
[383762076,1757109198342,-400.0,0.00038356,10]
[383762077,1757109198352,-417.09,0.00038356,10]
[383762078,1757109198362,-441.78,0.00038356,10]
[383762079,1757109198372,-400.0,0.00038356,10]
[383762080,1757109198382,-400.0,0.00038356,10]
[383762081,1757109198391,-400.0,0.00038356,10]
[383762082,1757109198401,-400.0,0.00038356,10]
[383762083,1757109198410,-400.0,0.00038356,10]
[383762084,1757109198420,-553.83,0.00038356,10]
[383762085,1757109198430,-546.26,0.00038356,10]
[383762086,1757109198439,-400.0,0.00038356,10]
[383762087,1757109198449,-400.0,0.00038356,10]
[383762088,1757109198459,-441.15,0.00038356,10]
[383762089,1757109198469,-785.59,0.00038356,10]
[383762090,1757109198479,-437.91,0.00038356,10]
[383762091,1757109198488,-447.37,0.00038356,10]
[383762092,1757109198498,-400.0,0.00038356,10]
[383762093,1757109198507,-632.37,0.00038356,10]
[383762094,1757109198517,-400.0,0.00038356,10]
[383762095,1757109198526,-400.0,0.00038356,10]
[383762096,1757109198535,-414.4,0.00038356,10]
[383762097,1757109198545,-400.0,0.00038356,10]
[383762098,1757109198555,-569.2,0.00038356,10]
[383762099,1757109198564,-981.06,0.00038356,10]
[383762100,1757109198574,-400.0,0.00038356,10]
[383762101,1757109198583,-400.0,0.00038356,10]
[383762102,1757109198593,-400.0,0.00038356,10]
[383762103,1757109198603,-400.0,0.00038356,10]
[383762104,1757109198613,-420.85,0.00038356,10]
[383762105,1757109198622,-194.84,0.00038356,10]
[383762106,1757109198632,-1444.34,0.00038356,10]
[383762107,1757109198642,-542.91,0.00038356,10]
[383762108,1757109198651,-287.00200356,0.00038356,10]
[383762109,1757109198661,-373.623252,0.00038356,10]
[383762110,1757109198671,-414.08,0.00038356,10]
[383762111,1757109198681,-2516.87,0.00038356,10]
[383762112,1757109198692,-441.96,0.00038356,10]
[383762113,1757109198702,-400.0,0.00038356,10]
[383762114,1757109198711,-487.97,0.00038356,10]
[383762115,1757109198722,-400.0,0.00038356,10]
[383762116,1757109198733,-586.94,0.00038356,10]
[383762117,1757109198742,-2345.08,0.00038356,10]
[383762118,1757109198752,-626.89,0.00038356,10]
[383762119,1757109198762,-447.68,0.00038356,10]
[383762120,1757109198772,-400.0,0.00038356,10]
[383762121,1757109198781,-498.12,0.00038356,10]
[383762122,1757109198791,-400.0,0.00038356,10]
[383762123,1757109198801,-400.0,0.00038356,10]
[383762124,1757109198811,-400.0,0.00038356,10]
[383762125,1757109198821,-453.25026151,0.00038356,10]
[383762126,1757109198831,-448.78,0.00038356,10]
[383762127,1757109198841,-400.0,0.00038356,10]
[383762128,1757109198851,-400.0,0.00038356,10]
[383762129,1757109198861,-475.22,0.00038356,10]
[383762130,1757109198870,-400.0,0.00038356,10]
[383762131,1757109198880,-562.67,0.00038356,10]
[383762132,1757109198889,-400.0,0.00038356,10]
[383762133,1757109198899,-576.12,0.00038356,10]
[383762134,1757109198909,-459.73,0.00038356,10]
[383762135,1757109198920,-400.0,0.00038356,10]
[383762136,1757109198930,-400.0,0.00038356,10]
[383762137,1757109198939,-546.92,0.00038356,10]
[383762138,1757109198949,-412.63982726,0.00038356,10]
[383762139,1757109198959,-400.0,0.00038356,2]
[383762140,1757109198968,-543.53,0.00038356,10]
[383762141,1757109198982,-215.6660115,0.00038356,10]
[383762142,1757109198992,-495.5,0.00038356,10]
[383762143,1757109199001,-400.0,0.00038356,10]
[383762144,1757109199010,-551.73,0.00038356,10]
[383762145,1757109199020,-584.47,0.00038356,10]
[383762146,1757109199029,-400.0,0.00038356,10]
[383762147,1757109199039,-400.0,0.00038356,10]
[383762148,1757109199048,-445.12,0.00038356,10]
[383762149,1757109199058,-400.0,0.00038356,10]
[383762150,1757109199067,-400.0,0.00038356,10]
[383762151,1757109199077,-400.0,0.00038356,10]
[383762152,1757109199086,-618.31,0.00038356,10]
[383762153,1757109199096,-582.55,0.00038356,10]
[383762154,1757109199105,-2141.03,0.00038356,10]
[383762155,1757109199114,-502.39,0.00038356,10]
[383762156,1757109199123,-400.0,0.00038356,10]
[383762157,1757109199132,-400.0,0.00038356,10]
[383762158,1757109199141,-884.72,0.00038356,10]
[383762159,1757109199151,-494.68,0.00038356,10]
[383762160,1757109199160,-492.2,0.00038356,10]
[383762161,1757109199170,-590.75,0.00038356,10]
[383762162,1757109199179,-434.34,0.00038356,10]
[383762163,1757109199189,-400.0,0.00038356,10]
[383762164,1757109199198,-400.0,0.00038356,10]
[383762165,1757109199208,-400.0,0.00038356,10]
[383762166,1757109199218,-400.0,0.00038356,10]
[383762167,1757109199227,-423.04,0.00038356,10]
[383762168,1757109199237,-400.0,0.00038356,10]
[383762169,1757109199247,-503.08430002,0.00038356,10]
[383762170,1757109199256,-474.82,0.00038356,10]
[383762171,1757109199266,-400.0,0.00038356,10]
[383762172,1757109199276,-400.0,0.00038356,10]
[383762173,1757109199285,-400.0,0.00038356,10]
[383762174,1757109199294,-400.0,0.00038356,10]
[383762175,1757109199305,-400.0,0.00038356,10]
[383762176,1757109199315,-400.0,0.00038356,10]
[383762177,1757109199325,-422.6,0.00038356,10]
[383762178,1757109199335,-1028.14,0.00038356,10]
[383762179,1757109199344,-400.0,0.00038356,10]
[383762180,1757109199354,-400.0,0.00038356,10]
[383762181,1757109199364,-2757.36,0.00038356,10]
[383762182,1757109199374,-400.0,0.00038356,10]
[383762183,1757109199383,-701.4,0.00038356,10]
[383762184,1757109199393,-404.16,0.00038356,10]
[383762185,1757109199402,-696.57,0.00038356,10]
[383762186,1757109199411,-766.81,0.00038356,10]
[383762187,1757109199420,-435.83480931,0.00038356,10]
[383762188,1757109199430,-400.0,0.00038356,10]
[383762189,1757109199439,-438.53,0.00038356,10]
[383762190,1757109199448,-400.0,0.00038356,10]
[383762191,1757109199457,-400.0,0.00038356,10]
[383762192,1757109199467,-400.0,0.00038356,10]
[383762193,1757109199476,-480.98,0.00038356,10]
[383762194,1757109199486,-425.95,0.00038356,10]
[383762195,1757109199495,-400.0,0.00038356,10]
[383762196,1757109199505,-400.0,0.00038356,10]
[383762197,1757109199514,-443.56,0.00038356,10]
[383762198,1757109199524,-400.0,0.00038356,10]
[383762199,1757109199533,-501.99,0.00038356,10]
[383762200,1757109199542,-400.0,0.00038356,10]
[383762201,1757109199551,-400.0,0.00038356,10]
[383762202,1757109199560,-400.0,0.00038356,10]
[383762203,1757109199569,-441.78,0.00038356,10]
[383762204,1757109199579,-545.84,0.00038356,10]
[383762205,1757109199588,-545.23,0.00038356,10]
[383762206,1757109199598,-439.9,0.00038356,10]
[383762207,1757109199607,-400.0,0.00038356,10]
[383762208,1757109199617,-405.11,0.00038356,10]
[383762209,1757109199749,-400.0,0.00038356,10]
[383762210,1757109199759,-400.0,0.00038356,10]
[383762211,1757109199769,-487.8790847,0.00038356,10]
[383762212,1757109199779,-400.0,0.00038356,10]
[383762213,1757109199788,-413.96,0.00038356,10]
[383762214,1757109199797,-470.74,0.00038356,10]
[383762215,1757109199807,-400.0,0.00038356,10]
[383762216,1757109199816,-1154.65,0.00038356,10]
[383762217,1757109199826,-400.0,0.00038356,10]
[383762218,1757109199836,-3534.15,0.00038356,10]
[383762219,1757109199846,-400.0,0.00038356,10]
[383762220,1757109199856,-400.0,0.00038356,10]
[383762221,1757109199865,-466.43,0.00038356,10]
[383762222,1757109199875,-400.0,0.00038356,10]
[383762223,1757109199884,-486.3,0.00038356,10]
[383762224,1757109199895,-552.13,0.00038356,10]
[383762225,1757109199904,-529.91,0.00038356,10]
[383762226,1757109199914,-524.16,0.00038356,10]
[383762227,1757109199925,-442.55186106,0.00038356,10]
[383762228,1757109199935,-400.0,0.00038356,10]
[383762229,1757109199944,-400.0,0.00038356,10]
[383762230,1757109199954,-400.0,0.00038356,10]
[383762231,1757109199964,-836.63,0.00038356,10]
[383762232,1757109199977,-400.0,0.00038356,10]
[383762233,1757109199987,-647.19,0.00038356,10]
[383762234,1757109199997,-400.0,0.00038356,10]
[383762235,1757109200007,-531.26,0.00038356,10]
[383762236,1757109200016,-400.0,0.00038356,10]
[383762237,1757109200026,-400.0,0.00038356,10]
[383762238,1757109200035,-508.58,0.00038356,10]
[383762239,1757109200045,-690.4,0.00038356,10]
[383762240,1757109200054,-400.0,0.00038356,10]
[383762241,1757109200063,-400.0,0.00038356,10]
[383762242,1757109200072,-424.68,0.00038356,10]
[383762243,1757109200082,-329.25258405,0.00038356,10]
[383762244,1757109200092,-1608.94,0.00038356,10]
[383762245,1757109200101,-496.78,0.00038356,10]
[383762246,1757109200111,-400.0,0.00038356,10]
[383762247,1757109200121,-400.0,0.00038356,10]
[383762248,1757109200130,-414.05,0.00038356,10]
[383762249,1757109200140,-400.0,0.00038356,10]
[383762250,1757109200149,-400.0,0.00038356,10]
[383762251,1757109200159,-983.85,0.00038356,10]
[383762252,1757109200168,-522.3,0.00038356,10]
[383762253,1757109200178,-2782.91,0.00038356,10]
[383762254,1757109200187,-400.0,0.00038356,10]
[383762255,1757109200197,-650.54,0.00038356,10]
[383762256,1757109200207,-436.1,0.00038356,10]
[383762257,1757109200216,-1361.26,0.00038356,10]
[383762258,1757109200226,-400.0,0.00038356,10]
[383762259,1757109200236,-400.0,0.00038356,10]
[383762260,1757109200246,-360.44978376,0.00038356,10]
[383762261,1757109200255,-400.0,0.00038356,10]
[383762262,1757109200263,-649.0,0.00038356,10]
[383762263,1757109200273,-400.0,0.00038356,10]
[383762264,1757109200283,-442.27,0.00038356,10]
[383762265,1757109200292,-474.21,0.00038356,10]
[383762266,1757109200301,-400.0,0.00038356,10]
[383762267,1757109200310,-400.0,0.00038356,10]
[383762268,1757109200320,-603.16,0.00038356,10]
[383762269,1757109200329,-407.14,0.00038356,10]
[383762270,1757109200339,-436.72,0.00038356,10]
[383762271,1757109200348,-8442.03,0.00038356,10]
[383762272,1757109200357,-443.36,0.00038356,10]
[383762273,1757109200367,-621.71,0.00038356,10]
[383762274,1757109200377,-400.0,0.00038356,10]
[383762275,1757109200387,-400.0,0.00038356,10]
[383762276,1757109200396,-400.0,0.00038356,10]
[383762277,1757109200406,-400.0,0.00038356,10]
[383762278,1757109200415,-406.08,0.00038356,10]
[383762279,1757109200425,-400.0,0.00038356,10]
[383762280,1757109200435,-400.0,0.00038356,10]
[383762281,1757109200444,-400.0,0.00038356,10]
[383762282,1757109200454,-1439.09,0.00038356,10]
[383762283,1757109200463,-400.0,0.00038356,10]
[383762284,1757109200474,-475.57,0.00038356,10]
[383762285,1757109200483,-2688.71,0.00038356,10]
[383762286,1757109200492,-1300.45,0.00038356,10]
[383762287,1757109200502,-400.0,0.00038356,10]
[383762288,1757109200511,-400.0,0.00038356,10]
[383762289,1757109200521,-400.0,0.00038356,10]
[383762290,1757109200531,-530.86,0.00038356,10]
[383762291,1757109200541,-400.0,0.00038356,10]
[383762292,1757109200551,-423.37,0.00038356,10]
[383762293,1757109200561,-400.0,0.00038356,10]
[383762294,1757109200570,-442.37,0.00038356,10]
[383762295,1757109200580,-425.64,0.00038356,10]
[383762296,1757109200589,-400.0,0.00038356,10]
[383762297,1757109200599,-400.0,0.00038356,10]
[383762298,1757109200608,-276.91957265,0.00038356,10]
[383762299,1757109200618,-4723.5,0.00038356,10]
[383762300,1757109200627,-514.62,0.00038356,10]
[383762301,1757109200637,-446.4,0.00038356,10]
[383762302,1757109200647,-400.0,0.00038356,10]
[383762303,1757109200656,-783.27,0.00038356,10]
[383762304,1757109200666,-425.55,0.00038356,10]
[383762305,1757109200675,-483.04,0.00038356,10]
[383762306,1757109200686,-440.05,0.00038356,10]
[383762307,1757109200696,-400.0,0.00038356,10]
[383762308,1757109200705,-400.0,0.00038356,10]
[383762309,1757109200715,-400.0,0.00038356,10]
[383762310,1757109200725,-483.3,0.00038356,10]
[383762311,1757109200734,-400.0,0.00038356,10]
[383762312,1757109200744,-500.0,0.00038356,10]
[383762313,1757109200754,-599.12,0.00038356,10]
[383762314,1757109200763,-400.0,0.00038356,10]